lending/lending_fUSD_20240219
["ID","MTS","AMOUNT","RATE_DAILY","PERIOD"]
[314464973,1708368664511,-500.0,0.00046849,30]
[314464974,1708368664520,-562.68,0.00046849,30]
[314464975,1708368664530,-500.0,0.00046849,30]
[314464976,1708368664539,-500.0,0.00046849,30]
[314464977,1708368664549,-500.0,0.00046849,30]
[314464978,1708368664558,-2473.67,0.00046849,30]
[314464979,1708368664567,-1005.45,0.00046849,30]
[314464980,1708368664576,-500.0,0.00046849,30]
[314464981,1708368664586,-6347.01,0.00046849,30]
[314464982,1708368664595,-5744.4,0.00046849,30]
[314464983,1708368664605,-500.0,0.00046849,30]
[314464984,1708368664614,-635.12,0.00046849,30]
[314464985,1708368664623,-500.0,0.00046849,30]
[314464986,1708368664632,-500.0,0.00046849,30]
[314464987,1708368664642,-500.0,0.00046849,30]
[314464988,1708368664651,-1522.56,0.00046849,30]
[314464989,1708368664660,-2256.08,0.00046849,30]
[314464990,1708368664670,-500.0,0.00046849,30]
[314464991,1708368664680,-500.0,0.00046849,30]
[314464992,1708368664689,-500.0,0.00046849,30]
[314464993,1708368664698,-832.26,0.00046849,30]
[314464994,1708368664708,-500.0,0.00046849,30]
[314464995,1708368664718,-500.0,0.00046849,30]
[314464996,1708368664727,-500.0,0.00046849,30]
[314464997,1708368664737,-500.0,0.00046849,30]
[314464998,1708368664747,-500.0,0.00046849,30]
[314464999,1708368664757,-500.0,0.00046849,30]
[314465000,1708368664767,-500.0,0.00046849,30]
[314465001,1708368664777,-1236.68,0.00046849,30]
[314465002,1708368664788,-547.6,0.00046849,30]
[314465003,1708368664798,-1000.0,0.00046849,50]
[314465004,1708368664808,-1425.1,0.00046849,30]
[314465005,1708368664818,-564.527442,0.00046849,14]
[314465006,1708368664828,-362.672816,0.00046849,14]
[314465007,1708368664838,-500.0,0.00046849,30]
[314465008,1708368664848,-1902.0,0.00046849,30]
[314465009,1708368664858,-1223.76,0.00046849,30]
[314465010,1708368664867,-500.0,0.00046849,30]
[314465011,1708368664877,-564.527442,0.00046849,14]
[314465012,1708368664887,-728.44,0.00046849,30]
[314465013,1708368664897,-2315.58,0.00046849,30]
[314465014,1708368664906,-362.672816,0.00046849,14]
[314465015,1708368664917,-1914.39,0.00046849,30]
[314465016,1708368664926,-500.0,0.00046849,30]
[314465017,1708368664936,-2411.54,0.00046849,30]
[314465018,1708368664946,-500.0,0.00046849,30]
[314465019,1708368664955,-500.0,0.00046849,30]
[314465020,1708368664965,-500.0,0.00046849,30]
[314465021,1708368664974,-2093.02,0.00046849,30]
[314465022,1708368664984,-500.0,0.00046849,30]
[314465023,1708368664999,-500.0,0.00046849,30]
[314465024,1708368665010,-699.79,0.00046849,30]
[314465025,1708368665020,-500.0,0.00046849,30]
[314465026,1708368665029,-2508.62,0.00046849,30]
[314465027,1708368665040,-1053.11767694,0.00046849,10]
[314465028,1708368665052,-853.23,0.00046849,30]
[314465029,1708368665063,-739.51,0.00046849,30]
[314465030,1708368665073,-2927.53,0.00046849,30]
[314465031,1708368665084,-687.82,0.00046849,30]
[314465032,1708368665094,-500.0,0.00046849,30]
[314465033,1708368665104,-3294.84,0.00046849,30]
[314465034,1708368665115,-500.0,0.00046849,30]
[314465035,1708368665125,-690.84,0.00046849,30]
[314465036,1708368665135,-692.65,0.00046849,30]
[314465037,1708368665145,-500.0,0.00046849,30]
[314465038,1708368665155,-2601.84,0.00046849,30]
[314465039,1708368665165,-500.0,0.00046849,30]
[314465040,1708368665175,-500.0,0.00046849,30]
[314465041,1708368665186,-1700.56,0.00046849,30]
[314465042,1708368665196,-500.0,0.00046849,30]
[314465043,1708368665206,-500.0,0.00046849,30]
[314465044,1708368665216,-821.54,0.00046849,30]
[314465045,1708368665378,-10482.06,0.00046849,30]
[314465046,1708368665421,-5118.98,0.00046849,30]
[314465047,1708368665431,-606.93,0.00046849,30]
[314465048,1708368665442,-500.0,0.00046849,30]
[314465049,1708368665453,-724.59,0.00046849,30]
[314465050,1708368665463,-1435.69,0.00046849,30]
[314465051,1708368665473,-2720.12,0.00046849,30]
[314465052,1708368665484,-550.33,0.00046849,30]
[314465053,1708368665496,-500.0,0.00046849,30]
[314465054,1708368665507,-380.32996786,0.00046849,30]
[314465055,1708368665517,-500.0,0.00046849,30]
[314465056,1708368665527,-2104.04,0.00046849,30]
[314465057,1708368665537,-2196.17,0.00046849,30]
[314465058,1708368665547,-7104.37,0.00046849,30]
[314465059,1708368665557,-504.73,0.00046849,30]
[314465060,1708368665567,-723.4,0.00046849,30]
[314465061,1708368665577,-500.0,0.00046849,30]
[314465062,1708368665587,-500.0,0.00046849,30]
[314465063,1708368665597,-500.0,0.00046849,30]
[314465064,1708368665607,-500.0,0.00046849,30]
[314465065,1708368665617,-500.0,0.00046849,30]
[314465066,1708368665628,-1570.25,0.00046849,30]
[314465067,1708368665639,-500.0,0.00046849,30]
[314465068,1708368665649,-500.0,0.00046849,30]
[314465069,1708368665660,-1109.49,0.00046849,30]
[314465070,1708368665670,-500.0,0.00046849,30]
[314465071,1708368665680,-2184.37,0.00046849,30]
[314465072,1708368665691,-500.0,0.00046849,30]
[314465073,1708368665701,-500.0,0.00046849,30]
[314465074,1708368665711,-500.0,0.00046849,30]
[314465075,1708368665721,-1652.43,0.00046849,30]
[314465076,1708368665732,-500.0,0.00046849,30]
[314465077,1708368665745,-500.0,0.00046849,30]
[314465078,1708368665756,-1462.02,0.00046849,30]
[314465079,1708368665767,-736.93,0.00046849,30]
[314465080,1708368665777,-728.09,0.00046849,30]
[314465081,1708368665788,-4402.59,0.00046849,30]
[314465082,1708368665799,-2028.71,0.00046849,30]
[314465083,1708368665810,-854.92,0.00046849,30]
[314465084,1708368665821,-1646.2,0.00046849,30]
[314465085,1708368665832,-500.0,0.00046849,30]
[314465086,1708368665843,-1932.82,0.00046849,30]
[314465087,1708368665854,-3172.5,0.00046849,30]
[314465088,1708368665864,-2240.1,0.00046849,30]
[314465089,1708368665875,-2442.28,0.00046849,30]
[314465090,1708368665886,-500.0,0.00046849,30]
[314465091,1708368665897,-276.19,0.00046849,30]
[314465092,1708368665907,-500.0,0.00046849,30]
[314465093,1708368665917,-500.0,0.00046849,30]
[314465094,1708368665928,-995.64,0.00046849,30]
[314465095,1708368665938,-500.0,0.00046849,30]
[314465096,1708368665949,-799.75,0.00046849,30]
[314465097,1708368665960,-2107.27,0.00046849,30]
[314465098,1708368665971,-500.0,0.00046849,2]
[314465099,1708368665981,-500.0,0.00046849,30]
[314465100,1708368665995,-2937.46,0.00046849,30]
[314465101,1708368666009,-500.0,0.00046849,30]
[314465102,1708368666019,-3144.01,0.00046849,30]
[314465103,1708368666029,-1348.72,0.00046849,30]
[314465104,1708368666046,-500.0,0.00046849,30]
[314465105,1708368666057,-1161.79,0.00046849,30]
[314465106,1708368666067,-656.22,0.00046849,30]
[314465107,1708368666077,-1809.4,0.00046849,30]
[314465108,1708368666089,-2455.3,0.00046849,30]
[314465109,1708368666099,-3314.58,0.00046849,30]
[314465110,1708368666109,-500.0,0.00046849,30]
[314465111,1708368666119,-500.0,0.00046849,30]
[314465112,1708368666130,-2749.99,0.00046849,30]
[314465113,1708368666140,-2604.24,0.00046849,30]
[314465114,1708368666150,-2079.25,0.00046849,30]
[314465115,1708368666160,-500.0,0.00046849,30]
[314465116,1708368666170,-500.0,0.00046849,30]
[314465117,1708368666180,-500.0,0.00046849,30]
[314465118,1708368666189,-774.33,0.00046849,30]
[314465119,1708368666199,-500.0,0.00046849,30]
[314465120,1708368666209,-500.0,0.00046849,30]
[314465121,1708368666219,-500.0,0.00046849,30]
[314465122,1708368666228,-584.31111581,0.00046849,30]
[314465123,1708368666241,-500.0,0.00046849,30]
[314465124,1708368666251,-500.0,0.00046849,30]
[314465125,1708368666262,-1677.75,0.00046849,30]
[314465126,1708368666272,-517.72,0.00046849,30]
[314465127,1708368666282,-500.0,0.00046849,30]
[314465128,1708368666291,-2854.87,0.00046849,30]
[314465129,1708368666301,-1722.41,0.00046849,30]
[314465130,1708368666311,-2028.62,0.00046849,30]
[314465131,1708368666321,-850.52,0.00046849,30]
[314465132,1708368666332,-500.0,0.00046849,30]
[314465133,1708368666343,-2296.4,0.00046849,30]
[314465134,1708368666353,-500.0,0.00046849,14]
[314465135,1708368666364,-517.25,0.00046849,30]
[314465136,1708368666375,-1784.3,0.00046849,30]
[314465137,1708368666386,-500.0,0.00046849,30]
[314465138,1708368666397,-1317.62,0.00046849,30]
[314465139,1708368666407,-500.0,0.00046849,30]
[314465140,1708368666419,-2465.92,0.00046849,30]
[314465141,1708368666429,-500.0,0.00046849,30]
[314465142,1708368666439,-1911.23,0.00046849,30]
[314465143,1708368666449,-500.0,0.00046849,30]
[314465144,1708368666460,-2314.73,0.00046849,30]
[314465145,1708368666475,-602.57,0.00046849,30]
[314465146,1708368666486,-500.0,0.00046849,30]
[314465147,1708368666499,-500.0,0.00046849,30]
[314465148,1708368666509,-500.0,0.00046849,30]
[314465149,1708368666519,-631.04,0.00046849,30]
[314465150,1708368666530,-3981.74,0.00046849,30]
[314465151,1708368666541,-1169.2,0.00046849,30]
[314465152,1708368666551,-211.13535126,0.00046849,30]
[314465153,1708368666561,-1552.04,0.00046849,30]
[314465154,1708368666571,-540.37,0.00046849,30]
[314465155,1708368666581,-552.17,0.00046849,30]
[314465156,1708368666592,-2113.91,0.00046849,30]
[314465157,1708368666602,-500.0,0.00046849,30]
[314465158,1708368666611,-500.0,0.00046849,30]
[314465159,1708368666622,-500.0,0.00046849,30]
[314465160,1708368666632,-500.0,0.00046849,2]
[314465161,1708368666643,-2085.91,0.00046849,30]
[314465162,1708368666657,-1956.67,0.00046849,30]
[314465163,1708368666668,-5088.49,0.00046849,30]
[314465164,1708368666679,-643.0,0.00046849,30]
[314465165,1708368666690,-2605.55,0.00046849,30]
[314465166,1708368666700,-867.27,0.00046849,30]
[314465167,1708368666711,-500.0,0.00046849,30]
[314465168,1708368666721,-859.22,0.00046849,30]
[314465169,1708368666732,-779.16,0.00046849,30]
[314465170,1708368666745,-713.28,0.00046849,30]
[314465171,1708368666756,-500.0,0.00046849,30]
[314465172,1708368666767,-816.59,0.00046849,30]
[314465173,1708368666778,-709.04,0.00046849,30]
[314465174,1708368666789,-2492.45,0.00046849,30]
[314465175,1708368666799,-3722.9,0.00046849,30]
[314465176,1708368666810,-500.0,0.00046849,30]
[314465177,1708368666821,-883.63,0.00046849,30]
[314465178,1708368666832,-540.83636426,0.00046849,30]
[314465179,1708368666843,-760.96,0.00046849,30]
[314465180,1708368666854,-1380.2,0.00046849,30]
[314465181,1708368666865,-1674.2,0.00046849,30]
[314465182,1708368666875,-556.81,0.00046849,30]
[314465183,1708368666886,-655.0,0.00046849,30]
[314465184,1708368666896,-500.0,0.00046849,30]
[314465185,1708368666907,-1017.47,0.00046849,30]
[314465186,1708368666918,-500.0,0.00046849,30]
[314465187,1708368666931,-511.17,0.00046849,30]
[314465188,1708368666942,-756.71,0.00046849,30]
[314465189,1708368666956,-915.36,0.00046849,30]
[314465190,1708368666970,-1574.11,0.00046849,30]
[314465191,1708368666982,-1056.29,0.00046849,30]
[314465192,1708368666997,-500.0,0.00046849,30]
[314465193,1708368667014,-500.0,0.00046849,30]
[314465194,1708368667027,-8203.56,0.00046849,30]
[314465195,1708368667039,-2423.57,0.00046849,30]
[314465196,1708368667056,-1478.67,0.00046849,30]
[314465197,1708368667067,-1345.26,0.00046849,30]
[314465198,1708368667082,-1202.65,0.00046849,30]
[314465199,1708368667092,-949.04,0.00046849,30]
[314465200,1708368667102,-1347.28,0.00046849,30]
[314465201,1708368667113,-500.0,0.00046849,30]
[314465202,1708368667124,-854.95,0.00046849,30]
[314465203,1708368667134,-500.0,0.00046849,30]
[314465204,1708368667144,-762.4,0.00046849,30]
[314465205,1708368667167,-500.0,0.00046849,30]
[314465206,1708368667181,-500.0,0.00046849,30]
[314465207,1708368667193,-3616.46,0.00046849,5]
[314465208,1708368667204,-162.88540489,0.00046853,6]
[314465209,1708368667215,-150.015539,0.00046884,30]
[314465210,1708368667226,-157.77434393,0.00046885,30]
[314465211,1708368667237,-150.0,0.00046891,7]
[314465212,1708368667248,-2000.0,0.000469,7]
[314465213,1708368667259,-200.0,0.000469,7]
[314465214,1708368667287,-2000.0,0.000469,7]
[314465215,1708368667298,-200.0,0.000469,7]
[314465216,1708368667307,-150.0,0.000469,68]
[314465217,1708368667328,-38998.5016627,0.000469,2]
[314465218,1708368667338,-436.5409961,0.000469,2]
[314465219,1708368667361,-150.0,0.00046913,7]
[314465220,1708368667373,-3850.677491,0.00046914,2]
[314465221,1708368667383,-3019.5560303,0.00046914,2]
[314465222,1708368667393,-564.527442,0.00046914,14]
[314465223,1708368667404,-362.672816,0.00046914,14]
[314465224,1708368667415,-564.527442,0.00046914,14]
[314465225,1708368667426,-362.672816,0.00046914,14]
[314465226,1708368667437,-153.07672135,0.0004692,32]
[314465227,1708368667447,-896.88,0.00046932,2]
[314465228,1708368667458,-2245.67032595,0.00046936,10]
[314465229,1708368667468,-650.06,0.00046962,15]
[314465230,1708368667478,-650.06,0.00046962,15]
[314465231,1708368667489,-214.48267473,0.00046984,30]
[314465232,1708368667500,-150.0,0.00046986,7]
[314465233,1708368667511,-200.0,0.00046987,73]
[314465234,1708368667521,-211.0,0.0004699,30]
[314465235,1708368667530,-150.0,0.00046996,7]
[314465236,1708368667540,-150.0,0.00046999,6]
[314465237,1708368667549,-150.0,0.00046999,6]
[314465238,1708368667559,-100000.0,0.00047,37]
[314465239,1708368667569,-3488.85152678,0.00047,60]
[314465240,1708368667578,-200.0,0.00047,22]
[314465241,1708368667588,-40000.0,0.00047,7]
[314465242,1708368667597,-248.15879332,0.00047,2]
[314465243,1708368667607,-150.0,0.00047043,7]
[314465244,1708368667617,-165.78496257,0.00047086,30]
[314465245,1708368667627,-150.0,0.00047109,7]
[314465246,1708368667637,-1389.03783296,0.0004711,30]
[314465247,1708368667647,-200.0,0.00047113,90]
[314465248,1708368667657,-282.36243059,0.00047113,90]
[314465249,1708368667667,-177.53,0.0004712,2]
[314465250,1708368667677,-375.51371653,0.00047123,30]
[314465251,1708368667687,-500.0,0.00047123,30]
[314465252,1708368667697,-500.0,0.00047123,30]
[314465253,1708368667706,-500.0,0.00047123,30]
[314465254,1708368667716,-500.0,0.00047123,30]
[314465255,1708368667726,-150.0,0.00047123,30]
[314465256,1708368667745,-500.0,0.00047123,30]
[314465257,1708368667759,-500.0,0.00047123,30]
[314465258,1708368667770,-500.0,0.00047123,30]
[314465259,1708368667782,-500.0,0.00047123,30]
[314465260,1708368667793,-500.0,0.00047123,30]
[314465261,1708368667804,-500.0,0.00047123,30]
[314465262,1708368667815,-500.0,0.00047123,30]
[314465263,1708368667826,-500.0,0.00047123,30]
[314465264,1708368667837,-500.0,0.00047123,30]
[314465265,1708368667847,-500.0,0.00047123,30]
[314465266,1708368667858,-640.94,0.00047123,30]
[314465267,1708368667868,-500.0,0.00047123,30]
[314465268,1708368667878,-500.0,0.00047123,30]
[314465269,1708368667889,-500.0,0.00047123,30]
[314465270,1708368667899,-500.0,0.00047123,30]
[314465271,1708368667910,-500.0,0.00047123,30]
[314465272,1708368667920,-500.0,0.00047123,30]
[314465273,1708368667931,-500.0,0.00047123,30]
[314465274,1708368667942,-500.0,0.00047123,30]
[314465275,1708368667952,-535.81,0.00047123,30]
[314465276,1708368667963,-500.0,0.00047123,30]
[314465277,1708368667974,-500.0,0.00047123,30]
[314465278,1708368667984,-500.0,0.00047123,30]
[314465279,1708368667997,-500.0,0.00047123,30]
[314465280,1708368668008,-500.0,0.00047123,30]
[314465281,1708368668019,-533.19679897,0.00047123,30]
[314465282,1708368668030,-500.0,0.00047123,30]
[314465283,1708368668041,-500.0,0.00047123,30]
[314465284,1708368668053,-500.0,0.00047123,30]
[314465285,1708368668064,-500.0,0.00047123,30]
[314465286,1708368668074,-500.0,0.00047123,30]
[314465287,1708368668085,-500.0,0.00047123,30]
[314465288,1708368668095,-500.0,0.00047123,30]
[314465289,1708368668204,-500.0,0.00047123,30]
[314465290,1708368668214,-642.01,0.00047123,30]
[314465291,1708368668225,-624.96,0.00047123,30]
[314465292,1708368668235,-500.0,0.00047123,30]
[314465293,1708368668248,-500.0,0.00047123,30]
[314465294,1708368668258,-500.0,0.00047123,30]
[314465295,1708368668268,-500.0,0.00047123,30]
[314465296,1708368668280,-500.0,0.00047123,30]
[314465297,1708368668292,-500.0,0.00047123,30]
[314465298,1708368668304,-500.0,0.00047123,30]
[314465299,1708368668315,-500.0,0.00047123,30]
[314465300,1708368668326,-500.0,0.00047123,30]
[314465301,1708368668337,-500.0,0.00047123,30]
[314465302,1708368668348,-500.0,0.00047123,30]
[314465303,1708368668359,-500.0,0.00047123,30]
[314465304,1708368668370,-500.0,0.00047123,30]
[314465305,1708368668381,-582.97,0.00047123,30]
[314465306,1708368668391,-641.29,0.00047123,30]
[314465307,1708368668408,-500.0,0.00047123,30]
[314465308,1708368668421,-500.0,0.00047123,30]
[314465309,1708368668431,-500.0,0.00047123,30]
[314465310,1708368668441,-500.0,0.00047123,30]
[314465311,1708368668451,-500.0,0.00047123,30]
[314465312,1708368668461,-500.0,0.00047123,30]
[314465313,1708368668471,-500.0,0.00047123,30]
[314465314,1708368668482,-500.0,0.00047123,30]
[314465315,1708368668492,-500.0,0.00047123,30]
[314465316,1708368668502,-500.0,0.00047123,30]
[314465317,1708368668512,-184.07975033,0.00047123,30]
[314465318,1708368668521,-531.21,0.00047123,30]
[314465319,1708368668531,-500.0,0.00047123,30]
[314465320,1708368668541,-685.28,0.00047123,30]
[314465321,1708368668551,-500.0,0.00047123,30]
[314465322,1708368668561,-500.0,0.00047123,30]
[314465323,1708368668571,-500.0,0.00047123,30]
[314465324,1708368668581,-500.0,0.00047123,30]
[314465325,1708368668591,-500.0,0.00047123,30]
[314465326,1708368668601,-500.0,0.00047123,30]
[314465327,1708368668612,-500.0,0.00047123,30]
[314465328,1708368668622,-500.0,0.00047123,30]
[314465329,1708368668632,-500.0,0.00047123,30]
[314465330,1708368668643,-500.0,0.00047123,30]
[314465331,1708368668653,-633.19,0.00047123,30]
[314465332,1708368668663,-500.0,0.00047123,30]
[314465333,1708368668673,-500.0,0.00047123,30]
[314465334,1708368668689,-500.0,0.00047123,30]
[314465335,1708368668699,-500.0,0.00047123,30]
[314465336,1708368668716,-500.0,0.00047123,30]
[314465337,1708368668726,-500.0,0.00047123,30]
[314465338,1708368668736,-500.0,0.00047123,30]
[314465339,1708368668748,-500.0,0.00047123,30]
[314465340,1708368668759,-446.19220837,0.00047123,30]
[314465341,1708368668769,-500.0,0.00047123,30]
[314465342,1708368668786,-500.0,0.00047123,30]
[314465343,1708368668796,-500.0,0.00047123,30]
[314465344,1708368668805,-500.0,0.00047123,30]
[314465345,1708368668815,-505.19970657,0.00047123,30]
[314465346,1708368668825,-500.0,0.00047123,30]
[314465347,1708368668835,-500.0,0.00047123,30]
[314465348,1708368668845,-500.0,0.00047123,30]
[314465349,1708368668855,-500.0,0.00047123,30]
[314465350,1708368668865,-500.0,0.00047123,30]
[314465351,1708368668880,-500.0,0.00047123,30]
[314465352,1708368668891,-500.0,0.00047123,30]
[314465353,1708368668907,-500.0,0.00047123,30]
[314465354,1708368668919,-500.0,0.00047123,30]
[314465355,1708368668929,-500.0,0.00047123,30]
[314465356,1708368668940,-500.0,0.00047123,30]
[314465357,1708368668951,-500.0,0.00047123,30]
[314465358,1708368668961,-500.0,0.00047123,30]
[314465359,1708368668979,-500.0,0.00047123,30]
[314465360,1708368668989,-522.17,0.00047123,30]
[314465361,1708368669002,-2000.0,0.00047123,30]
[314465362,1708368669021,-887.38,0.00047123,30]
[314465363,1708368669038,-500.0,0.00047123,30]
[314465364,1708368669048,-500.0,0.00047123,30]
[314465365,1708368669061,-500.0,0.00047123,30]
[314465366,1708368669078,-500.0,0.00047123,30]
[314465367,1708368669092,-500.0,0.00047123,30]
[314465368,1708368669101,-500.0,0.00047123,30]
[314465369,1708368669111,-500.0,0.00047123,30]
[314465370,1708368669121,-500.0,0.00047123,30]
[314465371,1708368669131,-500.0,0.00047123,30]
[314465372,1708368669145,-800.0,0.00047123,2]
[314465373,1708368669154,-500.0,0.00047123,30]
[314465374,1708368669164,-500.0,0.00047123,30]
[314465375,1708368669174,-888.82,0.00047123,30]
[314465376,1708368669188,-500.0,0.00047123,30]
[314465377,1708368669197,-500.0,0.00047123,30]
[314465378,1708368669207,-500.0,0.00047123,30]
[314465379,1708368669217,-805.55,0.00047123,30]
[314465380,1708368669227,-500.0,0.00047123,30]
[314465381,1708368669238,-500.0,0.00047123,30]
[314465382,1708368669248,-500.0,0.00047123,30]
[314465383,1708368669258,-500.0,0.00047123,30]
[314465384,1708368669268,-500.0,0.00047123,30]
[314465385,1708368669278,-500.0,0.00047123,30]
[314465386,1708368669288,-500.0,0.00047123,30]
[314465387,1708368669297,-500.0,0.00047123,30]
[314465388,1708368669307,-500.0,0.00047123,30]
[314465389,1708368669317,-500.0,0.00047123,30]
[314465390,1708368669326,-500.0,0.00047123,30]
[314465391,1708368669336,-500.0,0.00047123,30]
[314465392,1708368669346,-500.0,0.00047123,30]
[314465393,1708368669356,-834.16,0.00047123,30]
[314465394,1708368669366,-500.0,0.00047123,30]
[314465395,1708368669376,-500.0,0.00047123,30]
[314465396,1708368669386,-500.0,0.00047123,30]
[314465397,1708368669396,-500.0,0.00047123,30]
[314465398,1708368669406,-500.0,0.00047123,30]
[314465399,1708368669417,-1152.48,0.00047123,30]
[314465400,1708368669432,-500.0,0.00047123,30]
[314465401,1708368669450,-500.0,0.00047123,30]
[314465402,1708368669463,-500.0,0.00047123,30]
[314465403,1708368669474,-504.76,0.00047123,30]
[314465404,1708368669484,-842.01,0.00047123,30]
[314465405,1708368669496,-630.65533371,0.00047123,30]
[314465406,1708368669510,-500.0,0.00047123,30]
[314465407,1708368669519,-604.80236991,0.00047123,30]
[314465408,1708368669529,-500.0,0.00047123,30]
[314465409,1708368669539,-500.0,0.00047123,30]
[314465410,1708368669549,-500.0,0.00047123,30]
[314465411,1708368669559,-412.97611783,0.00047123,30]
[314465412,1708368669568,-591.49,0.00047123,30]
[314465413,1708368669577,-500.0,0.00047123,30]
[314465414,1708368669587,-500.0,0.00047123,30]
[314465415,1708368669597,-584.29,0.00047123,30]
[314465416,1708368669607,-552.1725642,0.00047123,30]
[314465417,1708368669620,-500.0,0.00047123,30]
[314465418,1708368669630,-500.0,0.00047123,30]
[314465419,1708368669640,-500.0,0.00047123,30]
[314465420,1708368669649,-818.08,0.00047123,30]
[314465421,1708368669659,-500.0,0.00047123,30]
[314465422,1708368669668,-500.0,0.00047123,30]
[314465423,1708368669678,-500.0,0.00047123,30]
[314465424,1708368669689,-500.0,0.00047123,30]
[314465425,1708368669699,-500.0,0.00047123,30]
[314465426,1708368669709,-500.0,0.00047123,30]
[314465427,1708368669719,-411.06118953,0.00047123,30]
[314465428,1708368669729,-761.13,0.00047123,30]
[314465429,1708368669743,-500.0,0.00047123,30]
[314465430,1708368669753,-555.14,0.00047123,30]
[314465431,1708368669764,-500.0,0.00047123,30]
[314465432,1708368669774,-500.0,0.00047123,30]
[314465433,1708368669784,-500.0,0.00047123,30]
[314465434,1708368669795,-500.0,0.00047123,30]
[314465435,1708368669805,-500.0,0.00047123,30]
[314465436,1708368669815,-500.0,0.00047123,30]
[314465437,1708368669825,-500.0,0.00047123,30]
[314465438,1708368669834,-500.0,0.00047123,30]
[314465439,1708368669845,-729.88,0.00047123,30]
[314465440,1708368669855,-534.72,0.00047123,30]
[314465441,1708368669865,-500.0,0.00047123,30]
[314465442,1708368669884,-500.0,0.00047123,2]
[314465443,1708368669896,-500.0,0.00047123,30]
[314465444,1708368669916,-500.0,0.00047123,30]
[314465445,1708368669926,-500.0,0.00047123,30]
[314465446,1708368669935,-500.0,0.00047123,30]
[314465447,1708368669945,-544.12,0.00047123,30]
[314465448,1708368669955,-1683.23,0.00047123,2]
[314465449,1708368669965,-500.0,0.00047123,30]
[314465450,1708368669983,-500.0,0.00047123,30]
[314465451,1708368669995,-500.0,0.00047123,30]
[314465452,1708368670018,-500.0,0.00047123,30]
[314465453,1708368670036,-991.14,0.00047123,30]
[314465454,1708368670051,-500.0,0.00047123,30]
[314465455,1708368670061,-851.7,0.00047123,30]
[314465456,1708368670074,-500.0,0.00047123,30]
[314465457,1708368670093,-500.0,0.00047123,30]
[314465458,1708368670106,-853.03,0.00047123,30]
[314465459,1708368670117,-500.0,0.00047123,30]
[314465460,1708368670127,-500.0,0.00047123,2]
[314465461,1708368670137,-500.0,0.00047123,30]
[314465462,1708368670148,-725.38,0.00047123,30]
[314465463,1708368670158,-500.0,0.00047123,30]
[314465464,1708368670167,-471.73814852,0.00047123,30]
[314465465,1708368670177,-919.88,0.00047123,30]
[314465466,1708368670188,-500.0,0.00047123,30]
[314465467,1708368670197,-500.0,0.00047123,30]
[314465468,1708368670207,-500.0,0.00047123,30]
[314465469,1708368670216,-500.0,0.00047123,30]
[314465470,1708368670226,-500.0,0.00047123,30]
[314465471,1708368670236,-704.79,0.00047123,30]
[314465472,1708368670249,-500.0,0.00047123,30]